bitfinex/quotes_BTCUSD_20230113
["timestamp","ask_amount","ask_price","bid_price","bid_amount"]
[1673652455184,0.58924,19824.0,19823.0,0.123]
[1673652455185,0.0848,19824.0,19823.0,0.123]
[1673652455428,0.55975257,19825.0,19823.0,0.60227529]
[1673652455429,0.55475257,19825.0,19823.0,0.60227529]
[1673652455688,0.55475257,19825.0,19822.0,0.504487]
[1673652455689,0.005,19824.0,19822.0,0.504487]
[1673652455939,0.005,19824.0,19822.0,1.093763]
[1673652456193,0.005,19824.0,19823.0,0.2]
[1673652456437,0.005,19824.0,19823.0,0.584]
[1673652456678,0.005,19824.0,19823.0,1.40772153]
[1673652456930,0.05,19825.0,19823.0,1.40772153]
[1673652457169,0.005,19824.0,19823.0,1.32372153]
[1673652457378,0.005,19824.0,19823.0,1.45424817]
[1673652457667,0.01,19824.0,19823.0,1.53182153]
[1673652457904,0.05,19825.0,19823.0,1.70782153]
[1673652458152,0.05,19825.0,19824.0,0.0848]
[1673652458408,0.05,19825.0,19824.0,0.789239]
[1673652459147,0.05,19825.0,19824.0,0.589239]
[1673652459392,0.84807782,19825.0,19823.0,0.62484959]
[1673652459643,0.84807782,19825.0,19822.0,0.504487]
[1673652459886,0.85307782,19825.0,19821.0,0.50720168]
[1673652460172,0.85307782,19825.0,19821.0,1.01170768]
[1673652460680,0.84807782,19825.0,19821.0,1.01170768]
[1673652460932,0.055,19825.0,19824.0,0.64003137]
[1673652461215,0.055,19825.0,19824.0,0.90635872]
[1673652461451,0.055,19825.0,19824.0,1.84890937]
[1673652461697,0.05,19825.0,19824.0,1.84890937]
[1673652461940,0.05,19825.0,19824.0,1.208878]
[1673652462191,0.05,19825.0,19824.0,1.50930472]
[1673652462443,0.05,19825.0,19824.0,1.77213999]
[1673652462698,0.055,19825.0,19824.0,1.77213999]
[1673652462950,0.05,19825.0,19824.0,1.77213999]
[1673652463194,0.055,19825.0,19824.0,1.89513999]
[1673652464200,0.055,19825.0,19824.0,1.69513999]
[1673652464700,0.055,19825.0,19824.0,1.89513999]
[1673652465423,0.055,19825.0,19824.0,1.69513999]
[1673652465687,0.25528541,19825.0,19824.0,0.123]
[1673652465931,0.60397064,19825.0,19824.0,0.123]
[1673652466714,0.37924,19825.0,19824.0,0.123]
[1673652466962,1.388066,19825.0,19824.0,0.123]
[1673652467460,1.03291764,19825.0,19824.0,0.123]
[1673652467705,0.70867764,19825.0,19824.0,0.123]
[1673652468940,0.70867764,19825.0,19823.0,1.10295601]
[1673652468941,0.055,19825.0,19823.0,0.42523386]
[1673652469200,0.055,19825.0,19824.0,1.351378]
[1673652469701,0.055,19825.0,19824.0,1.9540452]
[1673652469954,0.05,19825.0,19824.0,1.7540452]
[1673652471706,0.04500001,19825.0,19824.0,1.7540452]
[1673652473175,0.04500001,19825.0,19824.0,1.90363567]
[1673652473912,0.04500001,19825.0,19824.0,1.593878]
[1673652474150,0.02772364,19825.0,19824.0,3.39930822]
[1673652474645,0.02772364,19825.0,19824.0,3.10013433]
[1673652476406,0.02772364,19825.0,19824.0,3.67270075]
[1673652476645,0.02772364,19825.0,19824.0,2.20168886]
[1673652476877,0.02772364,19825.0,19824.0,2.10096708]
[1673652477141,0.02772364,19825.0,19824.0,1.37692244]
[1673652477396,0.02772364,19825.0,19824.0,2.17764422]
[1673652477667,0.02772364,19825.0,19824.0,2.6226871]
[1673652477912,0.02772364,19825.0,19824.0,2.02196532]
[1673652478156,0.02772364,19825.0,19824.0,1.57692244]
[1673652478404,0.02772364,19825.0,19824.0,1.63786246]
[1673652478908,0.02772364,19825.0,19824.0,1.48752119]
[1673652480920,0.02772364,19825.0,19824.0,1.008878]
[1673652481922,0.02772364,19825.0,19824.0,1.008401]
[1673652486932,0.22800905,19825.0,19822.0,0.37589075]
[1673652487185,0.46624,19824.0,19820.0,1.56035558]
[1673652487423,0.34228541,19824.0,19820.0,1.71069685]
[1673652487680,0.34228541,19824.0,19820.0,1.93624633]
[1673652487911,0.34228541,19824.0,19820.0,1.38494575]
[1673652488179,0.63652308,19823.0,19820.0,1.15939627]
[1673652488432,0.63652308,19823.0,19820.0,1.38494575]
[1673652488433,0.83680849,19823.0,19820.0,1.38494575]
[1673652488718,0.63652308,19823.0,19820.0,1.38494575]
[1673652488963,0.63652308,19823.0,19820.0,1.38493275]
[1673652489202,0.285,19821.0,19820.0,0.15034127]
[1673652489450,0.98980441,19821.0,19819.0,0.15034127]
[1673652489701,0.504464,19823.0,19819.0,0.15034127]
[1673652489702,1.12859428,19823.0,19819.0,0.57087461]
[1673652490211,0.051,19821.0,19819.0,1.30098509]
[1673652490481,0.62410828,19823.0,19820.0,0.36809399]
[1673652490737,0.1425,19822.0,19820.0,0.51888451]
[1673652490982,0.69142549,19822.0,19820.0,0.51888451]
[1673652491474,0.69142549,19822.0,19821.0,0.15079052]
[1673652491734,1.01566549,19822.0,19820.0,0.37634]
[1673652491982,0.223617,19821.0,19820.0,0.53100423]
[1673652492219,0.74242549,19822.0,19820.0,0.68093549]
[1673652492468,0.74242549,19822.0,19821.0,0.15082301]
[1673652493201,0.74242549,19822.0,19821.0,0.37637249]
[1673652493655,0.69142549,19822.0,19821.0,0.5310629]
[1673652493920,0.81542549,19822.0,19821.0,0.37637249]
[1673652494188,0.81542549,19822.0,19821.0,0.53106448]
[1673652494442,0.81542549,19822.0,19821.0,0.37637249]
[1673652494689,0.81542549,19822.0,19821.0,0.15082301]
[1673652494938,1.13966549,19822.0,19821.0,0.15082301]
[1673652495421,0.81542549,19822.0,19821.0,0.15082301]
[1673652495666,1.13966549,19822.0,19821.0,0.15082301]
[1673652495917,0.81542549,19822.0,19821.0,0.15082301]
[1673652496942,1.13966549,19822.0,19821.0,0.15082301]
[1673652497188,1.13966549,19822.0,19820.0,0.37637249]
[1673652497439,0.223617,19821.0,19820.0,0.53094785]
[1673652497686,0.81542549,19822.0,19820.0,0.37637249]
[1673652497925,0.81542549,19822.0,19820.0,0.15082301]
[1673652498169,0.32424,19821.0,19820.0,0.15082301]
[1673652498428,0.55322188,19821.0,19819.0,0.88092049]
[1673652498672,0.55322188,19821.0,19820.0,0.37637249]
[1673652499171,0.4921762,19821.0,19820.0,0.52527783]
[1673652499416,0.4851762,19821.0,19820.0,0.5252805]
[1673652499663,0.4991762,19821.0,19820.0,0.37629775]
[1673652499910,0.4851762,19821.0,19820.0,0.37629775]
[1673652500149,0.4921762,19821.0,19820.0,0.37629775]
[1673652500904,0.4921762,19821.0,19820.0,0.67523385]
[1673652501157,0.4921762,19821.0,19820.0,1.17977385]
[1673652501430,0.007,19821.0,19820.0,1.18031231]
[1673652501945,0.007,19821.0,19820.0,1.03031717]
[1673652502438,0.007,19821.0,19820.0,2.34725606]
[1673652502688,0.00410472,19821.0,19820.0,2.58689644]
[1673652502928,0.00018595,19821.0,19820.0,2.33545149]
[1673652503177,0.00018595,19821.0,19820.0,2.62672322]
[1673652503423,0.00019,19824.0,19820.0,3.29515678]
[1673652503674,0.00019,19824.0,19822.0,2.36028555]
[1673652503901,0.00019,19824.0,19823.0,0.44896259]
[1673652504178,0.00019,19824.0,19823.0,0.95342659]
[1673652504417,0.00019,19824.0,19823.0,1.15342659]
[1673652504673,0.00019,19824.0,19823.0,1.65789059]
[1673652504926,0.014,19824.0,19823.0,1.69289059]
[1673652505164,0.014,19824.0,19823.0,2.68069831]
[1673652505406,0.014,19824.0,19823.0,2.82319831]
[1673652507624,0.014,19824.0,19823.0,2.77249149]
[1673652507876,0.014,19824.0,19823.0,3.02469149]
[1673652508593,0.014,19824.0,19823.0,4.4949777]
[1673652508845,0.02272364,19825.0,19824.0,0.014]
[1673652509112,0.00838391,19829.0,19825.0,2.3183]
[1673652509354,0.00838391,19829.0,19828.0,0.33695]
[1673652509582,0.00838391,19829.0,19828.0,3.62316949]
[1673652510070,0.00838391,19830.0,19829.0,0.2]
[1673652510307,0.00838391,19830.0,19829.0,2.44679349]
[1673652510557,0.00838391,19830.0,19829.0,3.18920772]
[1673652511062,0.00368704,19830.0,19829.0,3.18920772]
[1673652511307,0.01668704,19830.0,19829.0,3.22420772]
[1673652511550,0.00806692,19831.0,19829.0,3.28364614]
[1673652511796,0.00806692,19831.0,19830.0,1.8775341]
[1673652512049,0.00806692,19831.0,19830.0,2.70371627]
[1673652512292,0.00806692,19831.0,19830.0,2.25335974]
[1673652512549,0.00806692,19831.0,19830.0,2.10439715]
[1673652512799,0.00806692,19831.0,19830.0,2.40461446]
[1673652513049,0.00806692,19831.0,19830.0,3.20967425]
[1673652513291,0.00806692,19831.0,19830.0,2.15951446]
[1673652513524,0.00806692,19831.0,19830.0,1.93400728]
[1673652513775,0.00806692,19831.0,19830.0,1.78368882]
[1673652515723,0.00806692,19831.0,19830.0,2.08368882]
[1673652515957,0.00806692,19831.0,19830.0,1.78368882]
[1673652517033,0.00806692,19831.0,19830.0,1.64468882]
[1673652517258,0.00906692,19831.0,19830.0,1.78368882]
[1673652517496,0.00806692,19831.0,19830.0,1.64468882]
[1673652517741,0.00906692,19831.0,19830.0,1.78468882]
[1673652518254,0.00906692,19831.0,19830.0,1.148572]
[1673652518501,0.97462043,19831.0,19830.0,0.14]
[1673652519475,0.68472692,19831.0,19830.0,0.14]
[1673652520231,1.906,19836.0,19830.0,0.14]
[1673652520483,0.1424,19832.0,19828.0,0.704312]
[1673652520728,0.34268541,19832.0,19831.0,0.6673343]
[1673652520980,0.1424,19832.0,19831.0,0.6673343]
[1673652522461,0.1594,19832.0,19831.0,0.01]
[1673652522720,0.583025,19832.0,19831.0,0.01]
[1673652522980,1.19349723,19832.0,19831.0,0.01]
[1673652523227,0.88726,19832.0,19831.0,0.01050103]
[1673652523469,0.017,19832.0,19831.0,1.26618203]
[1673652524214,0.017,19832.0,19831.0,1.77044303]
[1673652524489,0.017,19832.0,19831.0,1.17044303]
[1673652524738,0.017,19832.0,19831.0,1.114261]
[1673652524974,0.017,19832.0,19831.0,0.51476203]
[1673652525467,0.017,19832.0,19831.0,1.15243208]
[1673652525718,0.36870541,19832.0,19831.0,0.01]
[1673652525966,1.58755627,19832.0,19831.0,0.01]
[1673652527952,1.44585627,19832.0,19831.0,0.01]
[1673652528939,1.22223127,19832.0,19831.0,0.01]
[1673652529185,0.56657627,19832.0,19831.0,0.01170027]
[1673652529448,0.017,19832.0,19831.0,0.65197579]
[1673652531921,0.017,19832.0,19831.0,0.65027552]
[1673652532410,0.017,19832.0,19831.0,0.01]
[1673652532411,0.16842,19832.0,19831.0,0.01]
[1673652532649,1.05513416,19832.0,19831.0,0.01]
[1673652532903,0.83150916,19832.0,19831.0,0.01]
[1673652533146,0.68008916,19832.0,19831.0,0.01]
[1673652534651,0.68008916,19832.0,19831.0,0.0116433]
[1673652534881,0.68008916,19832.0,19831.0,0.01]
[1673652535422,0.017,19832.0,19831.0,0.01]
[1673652536816,0.017,19832.0,19831.0,0.0116433]
[1673652537536,0.017,19832.0,19831.0,0.01]
[1673652538031,0.017,19832.0,19831.0,0.01008217]
[1673652539042,0.017,19832.0,19831.0,0.21008217]
[1673652539286,0.01465603,19832.0,19831.0,2.06830135]
[1673652539549,0.01465603,19832.0,19831.0,3.22507119]
[1673652540040,1.49805358,19837.0,19831.0,2.89088119]
[1673652540303,0.001,19832.0,19831.0,2.32413133]
[1673652540570,0.75463899,19837.0,19833.0,0.504197]
[1673652540845,0.55454358,19837.0,19834.0,0.2]
[1673652541090,0.00019,19837.0,19835.0,0.00221197]
[1673652541599,0.66510189,19837.0,19835.0,0.52054968]
[1673652541853,0.52296974,19836.0,19834.0,0.8]
[1673652542104,0.52296974,19836.0,19834.0,1.37716082]
[1673652542595,0.52296974,19836.0,19835.0,0.005]
[1673652542840,0.52296974,19836.0,19834.0,0.57716082]
[1673652543087,0.52296974,19836.0,19834.0,0.036]
[1673652544576,1.36950774,19836.0,19834.0,0.036]
[1673652544815,0.223625,19835.0,19834.0,0.036]
[1673652545079,1.67365874,19836.0,19834.0,0.036]
[1673652545323,0.223625,19835.0,19834.0,0.036]
[1673652545565,1.67367874,19836.0,19834.0,0.03618865]
[1673652545826,0.223625,19835.0,19833.0,0.66459306]
[1673652546074,1.18352574,19836.0,19835.0,0.2]
[1673652546327,0.53696974,19836.0,19835.0,0.2]
[1673652546823,0.53696974,19836.0,19834.0,0.91247434]
[1673652547069,0.53696974,19836.0,19834.0,1.11247434]
[1673652547329,0.52296974,19836.0,19834.0,0.88156605]
[1673652547585,0.52296974,19836.0,19835.0,0.01]
[1673652547586,0.53696974,19836.0,19835.0,0.01]
[1673652547844,0.52296974,19836.0,19834.0,0.90766299]
[1673652548091,0.53696974,19836.0,19834.0,0.15560553]
[1673652548341,0.52296974,19836.0,19833.0,1.48671585]
[1673652548583,1.24139015,19836.0,19835.0,0.01]
[1673652548816,1.04110474,19836.0,19833.0,1.48671585]
[1673652549056,1.04110474,19836.0,19834.0,0.005]
[1673652549057,1.05510474,19836.0,19834.0,0.005]
[1673652549315,0.223625,19835.0,19833.0,1.26080756]
[1673652549544,1.02710474,19836.0,19833.0,1.26273934]
[1673652549788,1.04110474,19836.0,19835.0,0.01]
[1673652550026,1.26472974,19836.0,19835.0,0.01]
[1673652550280,1.04110474,19836.0,19835.0,0.01]
[1673652550526,1.02710474,19836.0,19833.0,0.66080756]
[1673652550780,1.02710474,19836.0,19834.0,0.00193168]
[1673652550781,1.04110474,19836.0,19834.0,0.00193168]
[1673652551020,1.04110474,19836.0,19833.0,0.66080756]
[1673652551252,1.04110474,19836.0,19835.0,0.01]
[1673652551500,0.60049004,19835.0,19833.0,0.66080756]
[1673652552248,0.60049004,19835.0,19833.0,0.88671585]
[1673652552488,0.60049004,19835.0,19833.0,1.08671585]
[1673652552729,0.60049004,19835.0,19833.0,0.92271585]
[1673652552985,0.60049004,19835.0,19833.0,1.52464763]
[1673652553240,0.60049004,19835.0,19834.0,0.15060553]
[1673652554241,0.0848,19836.0,19834.0,0.35060553]
[1673652554479,0.56794111,19836.0,19834.0,0.7357504]
[1673652554757,0.015,19835.0,19834.0,0.37651382]
[1673652554986,0.56794111,19836.0,19834.0,0.68581191]
[1673652555225,0.58194111,19836.0,19834.0,0.38185316]
[1673652555469,0.56794111,19836.0,19834.0,0.37685316]
[1673652555704,0.56794111,19836.0,19834.0,0.53608371]
[1673652555933,0.56794111,19836.0,19834.0,0.73608371]
[1673652556179,0.56794111,19836.0,19835.0,0.15094487]
[1673652556652,0.56794111,19836.0,19834.0,0.41285316]
[1673652556935,0.56794111,19836.0,19835.0,0.15094487]
[1673652558147,0.58294111,19836.0,19835.0,0.15094487]
[1673652558389,0.58294111,19836.0,19834.0,0.97685316]
[1673652559389,0.58294111,19836.0,19834.0,0.75094487]
[1673652559634,0.58294111,19836.0,19834.0,0.97685316]
[1673652559916,0.56794111,19836.0,19834.0,0.97685316]
[1673652560172,0.56794111,19836.0,19834.0,0.41285316]
[1673652560173,0.63934909,19835.0,19834.0,0.41285316]
[1673652560410,0.59301041,19835.0,19834.0,0.036]
[1673652560663,1.401043,19835.0,19834.0,0.036]
[1673652560920,2.05524896,19835.0,19834.0,0.036]
[1673652561409,1.83162396,19835.0,19832.0,0.37685316]
[1673652561656,1.87680937,19835.0,19832.0,0.53693142]
[1673652561918,0.0847,19833.0,19832.0,0.53693142]
[1673652562181,0.66418088,19833.0,19832.0,0.53704593]
[1673652562428,0.66418088,19833.0,19832.0,0.53693142]
[1673652563181,0.66418088,19833.0,19832.0,0.37685316]
[1673652563430,0.66418088,19833.0,19832.0,0.37696767]
[1673652563680,0.66418088,19833.0,19832.0,0.38685316]
[1673652563930,0.66418088,19833.0,19832.0,0.53697513]
[1673652564171,0.67918088,19833.0,19832.0,0.15094487]
[1673652564675,0.67918088,19833.0,19832.0,0.37685316]
[1673652564915,0.70394092,19833.0,19832.0,0.37685316]
[1673652565400,0.70394092,19833.0,19832.0,0.53698315]
[1673652566376,0.70394092,19833.0,19832.0,0.38603828]
[1673652566911,0.70394092,19833.0,19832.0,0.53699606]
[1673652567631,0.70394092,19833.0,19832.0,0.38603828]
[1673652567892,0.70394092,19833.0,19832.0,0.53701741]
[1673652568607,0.70394092,19833.0,19832.0,0.53713191]
[1673652568846,0.70394092,19833.0,19832.0,0.68682777]
[1673652569103,0.70384138,19833.0,19832.0,0.68682777]
[1673652569809,0.70384138,19833.0,19832.0,1.28682777]
[1673652570062,0.1243605,19833.0,19832.0,1.43677165]
[1673652570540,0.1093605,19833.0,19832.0,1.63677165]
[1673652570780,0.1093605,19833.0,19832.0,1.43677165]
[1673652571021,0.02476004,19833.0,19832.0,1.33609666]
[1673652571263,0.02476004,19833.0,19832.0,1.13609666]
[1673652571521,0.02476004,19833.0,19832.0,1.43805379]
[1673652571722,0.02476004,19833.0,19832.0,1.47405379]
[1673652572032,0.02476004,19833.0,19832.0,1.17209666]
[1673652572533,0.02476004,19833.0,19832.0,2.32219552]
[1673652572777,0.02119149,19833.0,19832.0,1.94634335]
[1673652575011,0.02119149,19833.0,19832.0,2.32383059]
[1673652575977,0.02119149,19833.0,19832.0,1.94634335]
[1673652576218,0.02119149,19833.0,19832.0,2.32386795]
[1673652576683,0.02119149,19833.0,19832.0,1.81954088]
[1673652576937,0.02119149,19833.0,19832.0,1.32492506]
[1673652577186,0.02119149,19833.0,19832.0,1.32471264]
[1673652577425,0.02119149,19833.0,19832.0,1.70225967]
[1673652577702,0.02119149,19833.0,19832.0,1.47572425]
[1673652577942,0.02119149,19833.0,19832.0,1.09817722]
[1673652578220,0.15874149,19833.0,19832.0,1.09817722]
[1673652578464,0.58002573,19833.0,19832.0,1.17374085]
[1673652579188,0.58002573,19833.0,19832.0,1.17386023]
[1673652579426,0.58002573,19833.0,19832.0,1.17374085]
[1673652579717,0.58002573,19833.0,19832.0,1.32474134]
[1673652579981,0.58002573,19833.0,19832.0,1.47572425]
[1673652580237,0.58002573,19833.0,19832.0,1.0982966]
[1673652580476,0.02119149,19833.0,19832.0,1.57216381]
[1673652580728,0.02119149,19833.0,19832.0,2.88063381]
[1673652580979,0.02119149,19833.0,19832.0,2.62890937]
[1673652581226,0.02119149,19833.0,19832.0,2.87672045]
[1673652581476,0.02119149,19833.0,19832.0,2.32890937]
[1673652581964,0.02119149,19833.0,19832.0,2.18191317]
[1673652582211,0.02119149,19833.0,19832.0,2.86671369]
[1673652582452,0.02119149,19833.0,19832.0,3.49521844]
[1673652582697,0.02119149,19833.0,19832.0,2.86671369]
[1673652582942,0.02119149,19833.0,19832.0,2.41370937]
[1673652583192,0.02119149,19833.0,19832.0,3.16668047]
[1673652583433,0.02119149,19833.0,19832.0,2.71370937]
[1673652583925,0.02119149,19833.0,19832.0,3.1666798]
[1673652584174,0.02119149,19833.0,19832.0,3.01157289]
[1673652584424,0.02119149,19833.0,19832.0,2.5666233]
[1673652584677,0.02119149,19833.0,19832.0,2.56448682]
[1673652584928,0.02119149,19833.0,19832.0,2.2666233]
[1673652585164,0.02119149,19833.0,19832.0,3.1666233]
[1673652585412,0.02119149,19833.0,19832.0,2.5666233]
[1673652586176,0.2214769,19833.0,19832.0,2.67101559]
[1673652586430,0.02119149,19833.0,19832.0,2.73330166]
[1673652587207,0.02119149,19833.0,19832.0,3.11072416]
[1673652587454,0.02119149,19833.0,19832.0,2.78653416]
[1673652589145,0.02119149,19833.0,19832.0,2.60911166]
[1673652589636,0.02119149,19833.0,19832.0,2.93330166]
[1673652590134,0.02119149,19833.0,19832.0,2.73330166]
[1673652590398,0.02119149,19833.0,19832.0,1.70247291]
[1673652590640,0.02119149,19833.0,19832.0,2.07991119]
[1673652590890,0.02119149,19833.0,19832.0,1.9289379]
[1673652591369,0.02119149,19833.0,19832.0,1.92903345]
[1673652591629,0.15874149,19833.0,19832.0,1.32454561]
[1673652591868,1.59560655,19833.0,19832.0,0.036]
[1673652592602,1.37198155,19833.0,19831.0,0.15098862]
[1673652592856,0.223625,19832.0,19831.0,0.15098862]
[1673652593105,0.223625,19832.0,19829.0,1.02376494]
[1673652593106,1.43238041,19832.0,19829.0,0.37745361]
[1673652593349,0.20028541,19831.0,19828.0,0.3885408]
[1673652593599,0.2,19830.0,19828.0,0.3885408]
[1673652593842,0.223625,19829.0,19828.0,0.16207581]
[1673652594335,0.704303,19830.0,19829.0,0.011]
[1673652594589,1.181728,19830.0,19829.0,0.011]
[1673652595343,0.62369944,19829.0,19828.0,0.16207581]
[1673652595601,1.52023544,19829.0,19828.0,0.01108719]
[1673652595836,0.2,19828.0,19826.0,0.01108719]
[1673652596080,1.262424,19827.0,19826.0,0.01108719]
[1673652596334,1.486049,19827.0,19826.0,0.01108719]
[1673652596587,0.307725,19827.0,19826.0,0.67250205]
[1673652597090,0.307725,19827.0,19826.0,0.01108719]
[1673652597590,0.85243557,19827.0,19826.0,0.01108719]
[1673652598078,0.85243557,19827.0,19826.0,0.02208719]
[1673652598578,0.0841,19827.0,19826.0,0.01108719]
[1673652598822,0.0981,19827.0,19826.0,0.02208719]
[1673652600062,0.321725,19827.0,19826.0,0.02208719]
[1673652600310,0.0981,19827.0,19826.0,0.02208719]
[1673652601538,0.321725,19827.0,19826.0,0.02208719]
[1673652601785,0.321725,19827.0,19826.0,0.02104819]
[1673652602024,0.321725,19827.0,19826.0,0.58989345]
[1673652602025,0.0981,19827.0,19826.0,0.58989345]
[1673652604364,0.11538666,19827.0,19826.0,0.58989345]
[1673652606352,0.11538666,19827.0,19826.0,0.78989345]
[1673652606837,0.03128666,19827.0,19826.0,2.19100419]
[1673652607099,0.01416811,19827.0,19826.0,2.82434941]
[1673652607340,0.01416811,19827.0,19826.0,2.89788442]
[1673652607341,0.00071326,19827.0,19826.0,2.89788442]
[1673652607589,0.00071326,19827.0,19826.0,2.93410699]
[1673652608079,0.00071326,19827.0,19826.0,4.34337825]
[1673652608080,0.00030798,19827.0,19826.0,4.34337825]
[1673652608319,0.00030798,19827.0,19826.0,4.04860699]
[1673652609089,0.00030798,19827.0,19826.0,4.04918547]
[1673652609334,0.00030798,19827.0,19826.0,4.03918547]
[1673652609844,0.00030798,19827.0,19826.0,4.78682883]
[1673652610843,0.00030798,19827.0,19826.0,4.95642883]
[1673652611386,0.00030798,19827.0,19826.0,5.47162883]
[1673652611623,0.00030798,19827.0,19826.0,5.47232883]
[1673652612603,0.00030798,19827.0,19826.0,4.82510626]
[1673652612845,0.00030798,19827.0,19826.0,5.42510626]
[1673652613091,6e-05,19830.0,19827.0,10.19969202]
[1673652613339,6e-05,19830.0,19829.0,2.33857923]
[1673652613608,6e-05,19830.0,19829.0,2.97226909]
[1673652613885,6e-05,19830.0,19829.0,3.95965003]
[1673652614126,6e-05,19830.0,19829.0,4.86134129]
[1673652614379,0.00938012,19833.0,19830.0,0.2]
[1673652614625,0.00938012,19833.0,19831.0,1.98741093]
[1673652614897,0.00938012,19833.0,19832.0,1.60847]
[1673652615162,0.00938012,19833.0,19832.0,2.13266]
[1673652615444,0.00938012,19833.0,19832.0,2.69378986]
[1673652615664,0.20966553,19833.0,19832.0,1.104235]
[1673652615911,0.62459479,19833.0,19832.0,0.6]
[1673652616644,0.00938012,19833.0,19832.0,0.60058155]
[1673652616885,0.00938012,19833.0,19832.0,2.24825667]
[1673652617137,0.00938012,19833.0,19832.0,2.7348846]
[1673652617512,0.00938012,19833.0,19832.0,2.9348846]
[1673652617649,0.00938012,19833.0,19832.0,2.93424283]
[1673652617906,0.00938012,19833.0,19832.0,3.38468076]
[1673652618160,0.00938012,19833.0,19832.0,3.63248184]
[1673652618398,0.00531485,19833.0,19832.0,3.95122615]
[1673652618899,0.20560026,19833.0,19832.0,4.44537118]
[1673652619144,0.00531485,19833.0,19832.0,3.01460086]
[1673652619416,0.00531485,19833.0,19832.0,2.78900717]
[1673652619664,0.00531485,19833.0,19832.0,2.18900717]
[1673652620173,0.00531485,19833.0,19832.0,2.78900717]
[1673652621412,0.00531485,19833.0,19832.0,4.10156265]
[1673652621649,0.00531485,19833.0,19832.0,3.57518887]
[1673652621889,0.00531485,19833.0,19832.0,3.62241144]
[1673652622369,0.00531485,19833.0,19832.0,3.99829008]
[1673652622609,0.00531485,19833.0,19832.0,3.95106421]
[1673652623106,0.00531485,19833.0,19832.0,3.57518887]
[1673652623840,0.00233506,19833.0,19832.0,3.57518887]
[1673652624106,0.00233506,19833.0,19832.0,4.36558017]
[1673652624591,0.00233506,19833.0,19832.0,3.91266624]
[1673652625089,0.00233506,19833.0,19832.0,4.21336624]
[1673652625349,0.00233506,19833.0,19832.0,5.63263282]
[1673652625861,0.00233506,19833.0,19832.0,5.03263282]
[1673652626116,0.00233506,19833.0,19832.0,5.63263282]
[1673652626872,0.00205584,19833.0,19832.0,4.88936208]
[1673652627103,0.00205584,19833.0,19832.0,5.18169196]
[1673652627563,0.00205584,19833.0,19832.0,5.63460545]
[1673652627816,5.84e-06,19833.0,19832.0,5.63460545]
[1673652628323,0.00013584,19836.0,19832.0,5.63460545]
[1673652628597,0.00013584,19836.0,19835.0,0.54437621]
[1673652628850,0.00013584,19836.0,19835.0,5.29597479]
[1673652629106,0.00013584,19836.0,19835.0,4.59561784]
[1673652629356,0.00013584,19836.0,19835.0,4.75549308]
[1673652629606,0.00013584,19836.0,19835.0,5.28141099]
[1673652629823,0.01074751,19838.0,19835.0,5.82969566]
[1673652630111,0.01074751,19838.0,19837.0,3.109922]
[1673652630361,0.01074751,19838.0,19837.0,4.15799185]
[1673652630820,0.01074751,19838.0,19837.0,3.55799185]
[1673652631028,0.01074751,19838.0,19837.0,4.30807681]
[1673652631535,0.01074751,19838.0,19837.0,4.22347681]
[1673652631775,0.01074751,19838.0,19837.0,4.07339185]
[1673652631999,0.01074751,19838.0,19837.0,3.58839185]
[1673652632263,0.01074751,19838.0,19837.0,4.9902445]
[1673652632512,0.01074751,19838.0,19837.0,5.45005682]
[1673652632760,0.01074751,19838.0,19837.0,5.22492946]
[1673652633254,0.01074751,19838.0,19837.0,5.10992946]
[1673652633469,0.0048798,19838.0,19837.0,5.81939444]
[1673652633697,0.01003388,19839.0,19838.0,0.6431192]
[1673652633936,0.01003388,19839.0,19838.0,3.57149329]
[1673652634178,0.01003388,19839.0,19838.0,4.9130043]
[1673652634423,0.01003388,19839.0,19838.0,4.3130043]
[1673652634676,0.01003388,19839.0,19838.0,4.9130043]
[1673652634920,0.01003388,19839.0,19838.0,5.05299847]
[1673652635146,0.01003388,19839.0,19838.0,5.05299365]
[1673652635398,0.01003388,19839.0,19838.0,3.6402891]
[1673652635399,0.21031929,19839.0,19838.0,3.6402891]
[1673652635661,0.01003388,19839.0,19838.0,3.59217177]
[1673652635901,0.01003388,19839.0,19838.0,3.79217177]
[1673652636141,0.01003388,19839.0,19838.0,3.05217177]
[1673652636433,0.01003388,19839.0,19838.0,3.7002891]
[1673652636682,0.01103388,19839.0,19838.0,3.8402891]
[1673652636937,0.01103388,19839.0,19838.0,3.8342891]
[1673652637177,0.01103388,19839.0,19838.0,4.35480168]
[1673652637435,0.00103388,19839.0,19838.0,4.35480168]
[1673652637961,0.00103388,19839.0,19838.0,4.70544921]
[1673652638214,0.00103388,19839.0,19838.0,4.94065433]
[1673652638466,0.00310541,19841.0,19840.0,2.016128]
[1673652638723,0.00310541,19841.0,19840.0,4.32493908]
[1673652638958,0.00310541,19841.0,19840.0,2.436286]
[1673652639210,0.00310541,19841.0,19840.0,1.836286]
[1673652639948,7e-05,19842.0,19840.0,1.566096]
[1673652640185,7e-05,19842.0,19841.0,2.11628811]
[1673652640934,0.55819526,19844.0,19841.0,2.39209811]
[1673652640935,0.0099616,19844.0,19841.0,2.39209811]
[1673652641188,0.0099616,19844.0,19841.0,1.808012]
[1673652641425,0.0099616,19844.0,19842.0,0.57617]
[1673652641648,0.0099616,19844.0,19843.0,2.111868]
[1673652641889,0.0099616,19844.0,19843.0,2.436058]
[1673652642128,0.0099616,19844.0,19843.0,2.91413168]
[1673652642376,0.0099616,19844.0,19843.0,2.91482433]
[1673652642625,0.00668169,19847.0,19845.0,1.00781]
[1673652642930,0.00668169,19847.0,19846.0,0.32419]
[1673652643175,0.00674169,19847.0,19846.0,0.32419]
[1673652643424,0.00674169,19847.0,19846.0,1.33264055]
[1673652643676,0.64893255,19847.0,19846.0,1.007758]
[1673652643930,0.64883054,19847.0,19846.0,1.007758]
[1673652644179,0.00674169,19847.0,19842.0,0.2]
[1673652644420,0.20028541,19846.0,19844.0,1.09120513]
[1673652644671,0.51834993,19847.0,19844.0,1.09120513]
[1673652644916,0.62225592,19846.0,19844.0,1.09120513]
[1673652646150,0.64825592,19846.0,19844.0,1.09520513]
[1673652646395,0.64825592,19846.0,19845.0,0.00028078]
[1673652646633,0.64825592,19846.0,19844.0,1.59911713]
[1673652646879,0.64825592,19846.0,19845.0,0.703905]
[1673652647368,0.64825592,19846.0,19845.0,0.70418578]
[1673652647619,0.50382,19849.0,19845.0,0.70418578]
[1673652647620,0.56977203,19849.0,19845.0,1.75183554]
[1673652647904,0.135,19846.0,19845.0,2.2972832]
[1673652648166,0.135,19846.0,19845.0,2.07602554]
[1673652648400,0.12150001,19846.0,19845.0,2.6214732]
[1673652648645,0.01064298,19850.0,19845.0,2.07772844]
[1673652648897,0.64010562,19850.0,19846.0,0.74544766]